{"text_format":"1","workbook":"xlsx","n_sheets":1,"sheets":["szovegbanyaszat"],"not_rendered":{"charts":0,"images":0,"macros":1,"external_links":0,"defined_names":0,"comments":0,"pivot_tables":0},"unopened":[],"bounds":{"document_bytes":16777216,"sheet_cells":100000,"rows_first":2000,"rows_last":500,"rows_between":2000,"halvings":0,"cell_chars":16384,"cell_head_chars":4096},"cells_cut":0,"cells_raw":0,"read":"whole","date_system":"1900"}

{"sheet":"szovegbanyaszat","index":0,"n_rows":12,"n_cols":6,"rows_kept":12,"cut":false,"hidden":false,"merged":[]}
["esetek","szöveg1","szöveg2","v1","v2","v3"]
["eset1","a","a",{"$f":"SzavankentTartalmaz(B2,C2)","v":{"$error":"#VALUE!"}},{"$f":"FIND(C2,B2)","v":1},{"$f":"EgyezesArany(B2,C2)","v":0}]
["eset2","a","a",{"$f":"SzavankentTartalmaz(B3,C3)","v":{"$error":"#VALUE!"}},{"$f":"FIND(C3,B3)","v":1},{"$f":"EgyezesArany(B3,C3)","v":0}]
["eset3","asd","a",{"$f":"SzavankentTartalmaz(B4,C4)","v":{"$error":"#VALUE!"}},1,{"$f":"EgyezesArany(B4,C4)","v":0}]
["eset4","asd asd","asd",{"$f":"SzavankentTartalmaz(B5,C5)","v":{"$error":"#VALUE!"}},1,{"$f":"EgyezesArany(B5,C5)","v":0}]
["eset5","asd","asd asd",{"$f":"SzavankentTartalmaz(B6,C6)","v":2},{"$error":"#VALUE!"},{"$f":"EgyezesArany(B6,C6)","v":1}]
["eset6","asd","a",{"$f":"SzavankentTartalmaz(B7,C7)","v":{"$error":"#VALUE!"}},1,{"$f":"EgyezesArany(B7,C7)","v":0}]
["eset7","a","asd",{"$f":"SzavankentTartalmaz(B8,C8)","v":{"$error":"#VALUE!"}},{"$error":"#VALUE!"},{"$f":"EgyezesArany(B8,C8)","v":0}]
["eset8","aaa bbb ccc","aaa",{"$f":"SzavankentTartalmaz(B9,C9)","v":{"$error":"#VALUE!"}},1,{"$f":"EgyezesArany(B9,C9)","v":0}]
["eset9","aaa","aaa bbb ccc",{"$f":"SzavankentTartalmaz(B10,C10)","v":0.5},{"$error":"#VALUE!"},{"$f":"EgyezesArany(B10,C10)","v":0.33333333333333331}]
["eset10","aaa bbb","aaa bbb ccc",{"$f":"SzavankentTartalmaz(B11,C11)","v":1},{"$error":"#VALUE!"},{"$f":"EgyezesArany(B11,C11)","v":0.66666666666666663}]
["eset11",null,null,{"$f":"SzavankentTartalmaz(B12,C12)","v":0},1,{"$f":"EgyezesArany(B12,C12)","v":0}]